fUST/lending_fUST_20251203
["ID","MTS","AMOUNT","RATE_DAILY","PERIOD"]
[395780341,1764723035803,-500.0,0.00012398,2]
[395780342,1764723035812,-500.0,0.00012398,2]
[395780343,1764723035821,-500.0,0.00012398,2]
[395780344,1764723035829,-500.0,0.00012398,2]
[395780345,1764723035839,-1181.91,0.00012398,2]
[395780346,1764723035849,-500.0,0.00012398,2]
[395780347,1764723035859,-500.0,0.00012398,2]
[395780348,1764723035868,-500.0,0.00012398,2]
[395780349,1764723035877,-500.0,0.00012398,2]
[395780350,1764723035886,-929.32,0.00012398,2]
[395780351,1764723035895,-500.0,0.00012398,2]
[395780352,1764723035904,-500.0,0.00012398,2]
[395780353,1764723035914,-500.0,0.00012398,2]
[395780354,1764723035925,-806.45,0.00012398,2]
[395780355,1764723035935,-1520.5,0.00012398,2]
[395780356,1764723035944,-500.0,0.00012398,2]
[395780357,1764723035953,-500.0,0.00012398,2]
[395780358,1764723035962,-600.85,0.00012398,2]
[395780359,1764723035971,-553.61,0.00012398,2]
[395780360,1764723035980,-531.67,0.00012398,2]
[395780361,1764723035989,-500.0,0.00012398,2]
[395780362,1764723035998,-500.0,0.00012398,2]
[395780363,1764723036008,-556.75,0.00012398,2]
[395780364,1764723036017,-500.0,0.00012398,2]
[395780365,1764723036027,-500.0,0.00012398,2]
[395780366,1764723036036,-500.0,0.00012398,2]
[395780367,1764723036046,-500.0,0.00012398,2]
[395780368,1764723036055,-500.0,0.00012398,2]
[395780369,1764723036065,-500.0,0.00012398,2]
[395780370,1764723036074,-605.33,0.00012398,2]
[395780371,1764723036083,-500.0,0.00012398,2]
[395780372,1764723036092,-572.58,0.00012398,2]
[395780373,1764723036102,-617.60099242,0.00012398,2]
[395780374,1764723036112,-500.0,0.00012398,2]
[395780375,1764723036121,-500.0,0.00012398,2]
[395780376,1764723036130,-500.0,0.00012398,2]
[395780377,1764723036140,-500.0,0.00012398,2]
[395780378,1764723036149,-500.0,0.00012398,2]
[395780379,1764723036158,-500.0,0.00012398,2]
[395780380,1764723036168,-827.53,0.00012398,2]
[395780381,1764723036178,-500.0,0.00012398,2]
[395780382,1764723036187,-500.0,0.00012398,2]
[395780383,1764723036197,-500.0,0.00012398,2]
[395780384,1764723036206,-500.0,0.00012398,2]
[395780385,1764723036215,-500.0,0.00012398,2]
[395780386,1764723036224,-561.02,0.00012398,2]
[395780387,1764723036233,-500.0,0.00012398,2]
[395780388,1764723036243,-500.0,0.00012398,2]
[395780389,1764723036252,-500.0,0.00012398,2]
[395780390,1764723036262,-500.0,0.00012398,2]
[395780391,1764723036271,-500.0,0.00012398,2]
[395780392,1764723036280,-573.84,0.00012398,2]
[395780393,1764723036289,-500.0,0.00012398,2]
[395780394,1764723036298,-1429.2,0.00012398,2]
[395780395,1764723036307,-500.0,0.00012398,2]
[395780396,1764723036316,-603.52,0.00012398,2]
[395780397,1764723036325,-564.64,0.00012398,2]
[395780398,1764723036334,-503.23158847,0.00012398,2]
[395780399,1764723036344,-1436.63,0.00012398,2]
[395780400,1764723036356,-500.0,0.00012398,2]
[395780401,1764723036365,-500.0,0.00012398,2]
[395780402,1764723036375,-500.0,0.00012398,2]
[395780403,1764723036390,-500.0,0.00012398,2]
[395780404,1764723036399,-500.0,0.00012398,2]
[395780405,1764723036409,-500.0,0.00012398,2]
[395780406,1764723036419,-500.0,0.00012398,2]
[395780407,1764723036430,-500.0,0.00012398,2]
[395780408,1764723036446,-500.0,0.00012398,2]
[395780409,1764723036455,-643.21,0.00012398,2]
[395780410,1764723036464,-935.41,0.00012398,2]
[395780411,1764723036473,-500.0,0.00012398,2]
[395780412,1764723036483,-728.14,0.00012398,2]
[395780413,1764723036492,-500.0,0.00012398,2]
[395780414,1764723036501,-500.0,0.00012398,2]
[395780415,1764723036511,-655.79,0.00012398,2]
[395780416,1764723036520,-500.0,0.00012398,2]
[395780417,1764723036530,-500.0,0.00012398,2]
[395780418,1764723036539,-695.44,0.00012398,2]
[395780419,1764723036548,-500.0,0.00012398,2]
[395780420,1764723036558,-500.0,0.00012398,2]
[395780421,1764723036567,-500.0,0.00012398,2]
[395780422,1764723036576,-500.0,0.00012398,2]
[395780423,1764723036586,-698.68,0.00012398,2]
[395780424,1764723036596,-500.0,0.00012398,2]
[395780425,1764723036605,-500.0,0.00012398,2]
[395780426,1764723036614,-500.0,0.00012398,2]
[395780427,1764723036624,-500.0,0.00012398,2]
[395780428,1764723036633,-500.0,0.00012398,2]
[395780429,1764723036642,-500.0,0.00012398,2]
[395780430,1764723036651,-500.0,0.00012398,2]
[395780431,1764723036660,-689.05,0.00012398,2]
[395780432,1764723036669,-500.0,0.00012398,2]
[395780433,1764723036679,-500.0,0.00012398,2]
[395780434,1764723036687,-624.69,0.00012398,2]
[395780435,1764723036697,-1062.54,0.00012398,2]
[395780436,1764723036706,-1280.44,0.00012398,2]
[395780437,1764723036715,-500.0,0.00012398,2]
[395780438,1764723036724,-500.0,0.00012398,2]
[395780439,1764723036734,-500.0,0.00012398,2]
[395780440,1764723036743,-500.0,0.00012398,2]
[395780441,1764723036752,-500.0,0.00012398,2]
[395780442,1764723036761,-544.6,0.00012398,2]
[395780443,1764723036771,-500.0,0.00012398,2]
[395780444,1764723036779,-610.3,0.00012398,2]
[395780445,1764723036788,-500.0,0.00012398,2]
[395780446,1764723036797,-596.75,0.00012398,2]
[395780447,1764723036807,-500.0,0.00012398,2]
[395780448,1764723036816,-739.01,0.00012398,2]
[395780449,1764723036826,-755.98,0.00012398,2]
[395780450,1764723036836,-500.0,0.00012398,2]
[395780451,1764723036845,-500.0,0.00012398,2]
[395780452,1764723036855,-500.0,0.00012398,2]
[395780453,1764723036864,-500.0,0.00012398,2]
[395780454,1764723036873,-500.0,0.00012398,2]
[395780455,1764723036883,-946.13,0.00012398,2]
[395780456,1764723036891,-500.0,0.00012398,2]
[395780457,1764723036901,-500.0,0.00012398,2]
[395780458,1764723036910,-500.0,0.00012398,2]
[395780459,1764723036919,-500.0,0.00012398,2]
[395780460,1764723037096,-1743.29,0.00012398,2]
[395780461,1764723037107,-500.0,0.00012398,2]
[395780462,1764723037117,-500.0,0.00012398,2]
[395780463,1764723037126,-500.0,0.00012398,2]
[395780464,1764723037135,-711.62,0.00012398,2]
[395780465,1764723037143,-500.0,0.00012398,2]
[395780466,1764723037153,-500.0,0.00012398,2]
[395780467,1764723037162,-635.86,0.00012398,2]
[395780468,1764723037171,-981.6,0.00012398,2]
[395780469,1764723037180,-565.49,0.00012398,2]
[395780470,1764723037190,-500.0,0.00012398,2]
[395780471,1764723037200,-500.0,0.00012398,2]
[395780472,1764723037209,-394.35859462,0.00012398,2]
[395780473,1764723037218,-449.2389034,0.00012398,2]
[395780474,1764723037227,-500.0,0.00012398,2]
[395780475,1764723037237,-500.0,0.00012398,2]
[395780476,1764723037246,-527.85,0.00012398,2]
[395780477,1764723037256,-553.65,0.00012398,2]
[395780478,1764723037265,-500.0,0.00012398,2]
[395780479,1764723037275,-500.0,0.00012398,2]
[395780480,1764723037284,-1207.84,0.00012398,2]
[395780481,1764723037293,-933.56,0.00012398,2]
[395780482,1764723037302,-500.0,0.00012398,2]
[395780483,1764723037311,-932.24,0.00012398,2]
[395780484,1764723037321,-546.69,0.00012398,2]
[395780485,1764723037331,-500.0,0.00012398,2]
[395780486,1764723037340,-590.3,0.00012398,2]
[395780487,1764723037352,-500.0,0.00012398,2]
[395780488,1764723037362,-516.8,0.00012398,2]
[395780489,1764723037371,-500.0,0.00012398,2]
[395780490,1764723037380,-500.0,0.00012398,2]
[395780491,1764723037390,-500.0,0.00012398,2]
[395780492,1764723037399,-1952.74,0.00012398,2]
[395780493,1764723037409,-500.0,0.00012398,2]
[395780494,1764723037419,-500.0,0.00012398,2]
[395780495,1764723037429,-500.0,0.00012398,2]
[395780496,1764723037442,-473.25317427,0.00012398,2]
[395780509,1764723038583,-500.0,0.00012395,2]
[395780511,1764723038593,-26.74682573,0.00012398,2]
[395780513,1764723038604,-916.75317426,0.00012398,2]
[395780515,1764723038615,-716.67682574,0.00012398,2]
[395780517,1764723038625,-500.0,0.00012398,2]
[395780519,1764723038635,-500.0,0.00012398,2]
[395780521,1764723038644,-593.7,0.00012398,2]
[395780523,1764723038655,-88047.36505267,0.00012572,2]
[395780527,1764723038686,-3718.76438981,0.00012572,2]
[395780530,1764723038697,-5956.4876015,0.00012572,2]
[395780705,1764723040738,-973.7,0.00012394,2]
[395780707,1764723040747,-4523.91677782,0.00012572,2]
[395780710,1764723040759,-2805.93710947,0.00012572,2]
[395780850,1764723042042,397.98453674,0.0001401,9]
[395781107,1764723044689,-770.9298,0.00012395,2]
[395781118,1764723044794,-590.86000074,0.00012395,2]
[395781130,1764723044903,-95.98019926,0.00012395,2]
[395781132,1764723044913,-349.12980074,0.00012396,2]
[395781646,1764723049883,1540.81155261,0.0001401,9]
[395782400,1764723057981,397.98453674,0.0001401,9]
[395787863,1764723299255,239.43920154,9.481e-05,2]
[395787963,1764723662999,250.0,0.0002,30]
[395788337,1764723880411,1000.0,0.00011,3]
[395788338,1764723887414,1000.0,0.0002,30]
[395788697,1764724231746,-404.1926725,0.00011764,2]
[395788699,1764724231757,-246.0,0.00011764,2]
[395788701,1764724231767,-377.4073275,0.00011973,2]
[395788703,1764724231782,-60.6961457,0.00011973,2]
[395788704,1764724231793,-17233.96808348,0.00012292,2]
[395788707,1764724231804,-143509.74057186,0.00012292,2]
[395788708,1764724231816,-397.36742732,0.00012292,2]
[395788709,1764724231827,-282.34546992,0.00012292,2]
[395788732,1764724237882,-262.38046322,0.00011956,2]
[395788734,1764724237892,-424.71012744,0.00012291,2]
[395788736,1764724237902,-65885.75488091,0.00012292,2]
[395788738,1764724237914,-7835.69838531,0.00012292,2]
[395788740,1764724237926,-11507.66988819,0.00012292,2]
[395788743,1764724237941,-2193.4165003,0.00012292,2]
[395788948,1764724239977,-7794.06037926,0.00012292,2]
[395788954,1764724240034,-4576.01192515,0.00012292,2]
[395788956,1764724240046,-430.55025904,0.00012292,2]
[395789216,1764724243052,-11309.80109592,0.00012292,2]
[395789521,1764724246120,-641.0,0.00012292,2]
[395789523,1764724246132,-2253.49425417,0.00012292,2]
[395789525,1764724246142,-6021.99999998,0.00012292,2]
[395795494,1764724499278,239.55886132,9.481e-05,2]
[395795652,1764724622418,250.0,0.0002,30]
[395796399,1764725023576,2343.75,0.000211,99]
[395796540,1764725438072,-1495.0,0.00010483,2]
[395796541,1764725438081,-782.78,0.00010589,2]
[395796554,1764725438266,-712.22,0.00010589,2]
[395796556,1764725438276,-238.0,0.00010696,2]
[395796558,1764725438285,-432.74988754,0.0001075,2]
[395796559,1764725438294,-417.509022,0.00010959,2]
[395796560,1764725438303,-500.0,0.00011358,2]
[395796562,1764725438315,-500.0,0.00011358,2]
[395796564,1764725438325,-500.0,0.00011358,2]
[395796565,1764725438334,-154.5199324,0.00011358,2]
[395796566,1764725438344,-300.0,0.00011358,2]
[395796567,1764725438353,-762.16953092,0.00011358,2]
[395796758,1764725440236,-366.39040813,0.00011358,2]
[395796762,1764725440268,-71.44006095,0.00011358,2]
[395796764,1764725440277,-233.03918079,0.00011358,2]
[395797058,1764725443188,-269.73277716,0.00011358,2]
[395797060,1764725443198,-500.0,0.00011358,2]
[395797062,1764725443209,-500.0,0.00011358,2]
[395797064,1764725443218,-500.0,0.00011358,2]
[395797066,1764725443227,-179.38169611,0.00011358,2]
[395797068,1764725443236,-500.0,0.00011358,2]
[395797070,1764725443245,-500.0,0.00011358,2]
[395797072,1764725443254,-500.0,0.00011358,2]
[395797074,1764725443263,-500.0,0.00011358,2]
[395797076,1764725443272,-381.07488919,0.00011358,2]
[395797078,1764725443282,-500.0,0.00011358,2]
[395797080,1764725443293,-50000.0,0.00011359,2]
[395797082,1764725443302,-500.0,0.00011359,2]
[395797084,1764725443312,-2356.65,0.00011359,2]
[395797086,1764725443323,-721.64,0.00011359,2]
[395797088,1764725443332,-744.86,0.00011359,2]
[395797090,1764725443342,-500.0,0.00011359,2]
[395797092,1764725443351,-288.11176597,0.00011359,2]
[395797094,1764725443361,-4681.63,0.00011359,2]
[395797096,1764725443370,-154.78724028,0.00011359,2]
[395797098,1764725443379,-3574.86,0.00011359,2]
[395797100,1764725443389,-3411.56,0.00011359,2]
[395797102,1764725443398,-500.0,0.00011359,2]
[395797104,1764725443407,-500.0,0.00011359,2]
[395797106,1764725443417,-836.33,0.00011359,2]
[395797108,1764725443427,-500.0,0.00011359,2]
[395797110,1764725443436,-661.86,0.00011359,2]
[395797112,1764725443446,-1244.34,0.00011359,2]
[395797114,1764725443455,-552.53,0.00011359,2]
[395797116,1764725443465,-934.16,0.00011359,2]
[395797119,1764725443475,-502.939819,0.00011359,2]
[395797121,1764725443487,-500.0,0.00011359,2]
[395797123,1764725443496,-862.03,0.0001136,2]
[395797124,1764725443505,-500.0,0.0001136,2]
[395797126,1764725443514,-500.0,0.0001136,2]
[395797129,1764725443524,-500.0,0.0001136,2]
[395797131,1764725443533,-1619.61,0.0001136,2]
[395797132,1764725443542,-1060.97,0.0001136,2]
[395797134,1764725443552,-630.22,0.0001136,2]
[395797136,1764725443562,-432.36868802,0.0001136,2]
[395797138,1764725443571,-500.0,0.0001136,2]
[395797140,1764725443581,-500.0,0.0001136,2]
[395797142,1764725443590,-500.0,0.0001136,2]
[395797145,1764725443600,-500.0,0.0001136,2]
[395797146,1764725443609,-221.91920096,0.0001136,2]
[395797148,1764725443618,-724.57,0.0001136,2]
[395797150,1764725443629,-801.75,0.0001136,2]
[395797152,1764725443638,-910.47,0.0001136,2]
[395797155,1764725443647,-72.04553413,0.0001136,2]
[395797157,1764725443659,-435.015,0.0001136,2]
[395797436,1764725446393,-643.27340154,0.00011244,2]
[395797438,1764725446408,-500.0,0.00011359,2]
[395797440,1764725446418,-626.83946587,0.0001136,2]
[395797442,1764725446428,-2343.52,0.0001136,2]
[395797445,1764725446439,-694.67,0.0001136,2]
[395797447,1764725446449,-500.0,0.0001136,2]
[395797449,1764725446459,-1182.83,0.0001136,2]
[395797451,1764725446469,-500.0,0.0001136,2]
[395797453,1764725446479,-1311.25,0.0001136,2]
[395797455,1764725446492,-500.0,0.0001136,2]
[395797457,1764725446502,-1244.29,0.0001136,2]
[395797459,1764725446511,-1150.03,0.0001136,2]
[395797461,1764725446520,-1385.76,0.0001136,2]
[395797463,1764725446530,-500.0,0.0001136,2]
[395797465,1764725446540,-1400.05,0.0001136,2]
[395797467,1764725446549,-1343.92,0.0001136,2]
[395797469,1764725446559,-11103.46025253,0.00011361,2]
[395807513,1764725582401,250.0,0.0002,30]
[395807527,1764725728343,1000.0,0.00011,3]
[395807534,1764726006318,599.99,0.000205,29]
[395807615,1764726165061,154.93231284,0.000211,99]
[395808083,1764726542679,250.0,0.0002,30]
[395808151,1764726638294,-237.0,0.00010569,2]
[395808153,1764726638305,-83.79809729,0.00010569,2]
[395808156,1764726638321,-344.03095555,0.00010569,2]
[395808158,1764726638330,-256.5169397,0.00010569,2]
[395808160,1764726638340,-1000.0,0.00011,2]
[395808162,1764726638350,-384.72291146,0.00011217,2]
[395808164,1764726638360,-551.94648161,0.00011258,2]
[395808166,1764726638370,-551.94648157,0.00011316,2]
[395808168,1764726638380,-300.0,0.00011352,2]
[395808170,1764726638390,-42846.42928461,0.00011353,2]
[395808173,1764726638403,-7153.57071539,0.00011353,2]
[395808175,1764726638413,-500.0,0.00011353,2]
[395808177,1764726638422,-183.83554804,0.00011353,2]
[395808179,1764726638431,-500.0,0.00011353,2]
[395808181,1764726638440,-155.19671288,0.00011353,2]
[395808183,1764726638450,-500.0,0.00011353,2]
[395808185,1764726638459,-2399.43,0.00011353,2]
[395808187,1764726638469,-758.97,0.00011353,2]
[395808189,1764726638479,-949.96,0.00011353,2]
[395808191,1764726638489,-653.7,0.00011353,2]
[395808193,1764726638498,-500.0,0.00011353,2]
[395808195,1764726638507,-3852.49,0.00011353,2]
[395808197,1764726638518,-1986.7,0.00011353,2]
[395808199,1764726638527,-501.30015449,0.00011353,2]
[395808201,1764726638537,-500.0,0.00011353,2]
[395808203,1764726638547,-3939.94,0.00011353,2]
[395808205,1764726638556,-501.29526288,0.00011353,2]
[395808207,1764726638566,-894.82,0.00011353,2]
[395808209,1764726638576,-500.78096094,0.00011353,2]
[395808211,1764726638585,-502.17971594,0.00011353,2]
[395808213,1764726638594,-457.78053593,0.00011353,2]
[395808215,1764726638604,-501.6583115,0.00011353,2]
[395808217,1764726638613,-500.0,0.00011353,2]
[395808219,1764726638622,-501.34604053,0.00011353,2]
[395808221,1764726638632,-566.05,0.00011353,2]
[395808223,1764726638642,-634.29,0.00011353,2]
[395808225,1764726638652,-500.0,0.00011353,2]
[395808227,1764726638662,-502.05352271,0.00011353,2]
[395808229,1764726638671,-1211.22,0.00011353,2]
[395808231,1764726638681,-500.0,0.00011353,2]
[395808233,1764726638691,-500.0,0.00011354,2]
[395808234,1764726638700,-500.0,0.00011354,2]
[395808237,1764726638710,-500.0,0.00011354,2]
[395808238,1764726638720,-500.0,0.00011354,2]
[395808240,1764726638730,-500.0,0.00011354,2]
[395808243,1764726638740,-562.12,0.00011354,2]
[395808245,1764726638749,-500.0,0.00011354,2]
[395808247,1764726638760,-500.0,0.00011354,2]
[395808249,1764726638772,-505.45605868,0.00011354,2]
[395808251,1764726638783,-500.0,0.00011354,2]
[395808253,1764726638794,-500.0,0.00011354,2]
[395808255,1764726638804,-504.39088941,0.00011354,2]
[395808257,1764726638813,-500.0,0.00011354,2]
[395808258,1764726638823,-500.0,0.00011354,2]
[395808261,1764726638833,-501.45778158,0.00011354,2]
[395808263,1764726638843,-502.17643964,0.00011354,2]
[395808264,1764726638853,-230.92107362,0.00011354,2]
[395808266,1764726638863,-502.62912886,0.00011354,2]
[395808268,1764726638874,-338.46993119,0.00011354,2]
[395808270,1764726638893,-502.15082257,0.00011354,2]
[395808272,1764726638903,-500.63020906,0.00011354,2]
[395808274,1764726638913,-500.0,0.00011354,2]
[395808276,1764726638923,-500.31771937,0.00011354,2]
[395808278,1764726638934,-500.0,0.00011354,2]
[395808280,1764726638944,-500.0,0.00011354,2]
[395808283,1764726638954,-503.89377701,0.00011354,2]
[395808285,1764726638965,-501.47664991,0.00011354,2]
[395808287,1764726638976,-500.63694093,0.00011354,2]
[395808289,1764726638986,-500.8249162,0.00011354,2]
[395808290,1764726638996,-500.0,0.00011354,2]
[395808293,1764726639007,-501.21657932,0.00011354,2]
[395808294,1764726639019,-504.72253253,0.00011354,2]
[395808297,1764726639029,-501.0295051,0.00011354,2]
[395808299,1764726639040,-501.22200291,0.00011354,2]
[395808301,1764726639050,-219.35289658,0.00011354,2]
[395808303,1764726639060,-503.1087401,0.00011354,2]
[395808304,1764726639071,-561.74,0.00011354,2]
[395808307,1764726639081,-502.83373636,0.00011354,2]
[395808308,1764726639091,-526.13597968,0.00011354,2]
[395808310,1764726639101,-504.01354791,0.00011354,2]
[395808312,1764726639111,-500.0,0.00011354,2]
[395808314,1764726639122,-500.0,0.00011354,2]
[395808317,1764726639133,-500.0,0.00011354,2]
[395808319,1764726639143,-500.0,0.00011354,2]
[395808321,1764726639153,-212.35655832,0.00011354,2]
[395808323,1764726639164,-505.94065361,0.00011354,2]
[395808325,1764726639174,-502.46349308,0.00011354,2]
[395808327,1764726639185,-501.92120899,0.00011354,2]
[395808329,1764726639198,-501.49225446,0.00011354,2]
[395808331,1764726639207,-500.0,0.00011354,2]
[395808333,1764726639217,-504.19155418,0.00011354,2]
[395808335,1764726639227,-501.36906663,0.00011354,2]
[395808337,1764726639237,-502.24364902,0.00011354,2]
[395808339,1764726639247,-452.70384454,0.00011354,2]
[395808340,1764726639258,-500.68467576,0.00011354,2]
[395808343,1764726639271,-410.26214862,0.00011354,2]
[395808345,1764726639281,-500.0,0.00011354,2]
[395808346,1764726639291,-500.0,0.00011354,2]
[395808349,1764726639301,-500.0,0.00011354,2]
[395808350,1764726639310,-500.0,0.00011354,2]
[395808352,1764726639320,-502.63325787,0.00011354,2]
[395808353,1764726639329,-500.87701236,0.00011354,2]
[395808354,1764726639339,-502.35565334,0.00011354,2]
[395808355,1764726639349,-500.88708734,0.00011354,2]
[395808356,1764726639358,-502.21482682,0.00011354,2]
[395808357,1764726639368,-500.0,0.00011354,2]
[395808358,1764726639377,-501.10634307,0.00011354,2]
[395808359,1764726639387,-500.61831065,0.00011354,2]
[395808360,1764726639396,-500.0,0.00011354,2]
[395808361,1764726639405,-500.0,0.00011354,2]
[395808362,1764726639415,-500.23268152,0.00011354,2]
[395808363,1764726639425,-500.0,0.00011354,2]
[395808364,1764726639435,-500.0,0.00011354,2]
[395808365,1764726639444,-501.59644485,0.00011354,2]
[395808366,1764726639453,-502.51860344,0.00011354,2]
[395808367,1764726639462,-500.0,0.00011354,2]
[395808368,1764726639472,-500.0,0.00011354,2]
[395808369,1764726639481,-500.0,0.00011355,2]
[395808370,1764726639543,-1313.42,0.00011355,2]
[395808371,1764726639552,-936.9,0.00011355,2]
[395808372,1764726639562,-896.51,0.00011355,2]
[395808373,1764726639571,-500.0,0.00011355,2]
[395808374,1764726639580,-500.0,0.00011355,2]
[395808375,1764726639589,-500.0,0.00011355,2]
[395808376,1764726639598,-602.47,0.00011355,2]
[395808377,1764726639608,-1119.72,0.00011355,2]
[395808378,1764726639617,-1708.26,0.00011355,2]
[395808379,1764726639626,-645.93,0.00011355,2]
[395808380,1764726639635,-2997.11,0.00011355,2]
[395808381,1764726639645,-502.71842034,0.00011355,2]
[395808382,1764726639654,-500.0,0.00011355,2]
[395808383,1764726639663,-500.0,0.00011355,2]
[395808385,1764726639673,-500.0,0.00011355,2]
[395808387,1764726639682,-608.36279947,0.00011355,2]
[395808389,1764726639692,-519.7735807,0.00011355,2]
[395808391,1764726639702,-500.0,0.00011355,2]
[395808393,1764726639712,-779.19,0.00011355,2]
[395808395,1764726639721,-500.0,0.00011355,2]
[395808397,1764726639731,-871.46,0.00011355,2]
[395808399,1764726639740,-955.22,0.00011355,2]
[395808401,1764726639750,-2560.66,0.00011355,2]
[395808403,1764726639759,-1226.96,0.00011355,2]
[395808405,1764726639770,-1610.02,0.00011355,2]
[395808407,1764726639780,-1716.08,0.00011355,2]
[395808409,1764726639788,-737.2,0.00011355,2]
[395808411,1764726639798,-1348.43,0.00011355,2]
[395808413,1764726639807,-501.43337579,0.00011355,2]
[395808415,1764726639817,-500.0,0.00011355,2]
[395808417,1764726639826,-1347.45,0.00011355,2]
[395808419,1764726639835,-500.45421776,0.00011355,2]
[395808421,1764726639844,-500.0,0.00011355,2]
[395808423,1764726639854,-1332.94,0.00011355,2]
[395808425,1764726639863,-1551.99,0.00011355,2]
[395808428,1764726639872,-1608.11,0.00011355,2]
[395808429,1764726639883,-500.0,0.00011355,2]
[395808431,1764726639895,-500.0,0.00011355,2]
[395808433,1764726639905,-500.0,0.00011355,2]
[395808435,1764726639914,-512.50828822,0.00011355,2]
[395808437,1764726639924,-500.0,0.00011355,2]
[395808439,1764726639934,-1287.92,0.00011355,2]
[395808442,1764726639944,-627.83,0.00011355,2]
[395808443,1764726639953,-500.0,0.00011355,2]
[395808446,1764726639963,-500.0,0.00011356,2]
[395808447,1764726639973,-500.0,0.00011356,2]
[395808450,1764726639982,-500.87197077,0.00011356,2]
[395808451,1764726639992,-500.0,0.00011356,2]
[395808453,1764726640001,-500.94326022,0.00011356,2]
[395808455,1764726640011,-501.3542315,0.00011356,2]
[395808457,1764726640021,-500.0,0.00011356,2]
[395808459,1764726640030,-500.0,0.00011356,2]
[395808461,1764726640038,-500.0,0.00011356,2]
[395808463,1764726640047,-500.0,0.00011356,2]
[395808465,1764726640057,-500.0,0.00011356,2]
[395808468,1764726640068,-500.0,0.00011356,2]
[395808470,1764726640079,-500.0,0.00011356,2]
[395808472,1764726640088,-501.44855515,0.00011356,2]
[395808474,1764726640098,-500.0,0.00011356,2]
[395808476,1764726640107,-500.0,0.00011356,2]
[395808478,1764726640116,-500.0,0.00011356,2]
[395808480,1764726640126,-500.0,0.00011356,2]
[395808482,1764726640135,-500.0,0.00011356,2]
[395808484,1764726640144,-502.57068727,0.00011356,2]
[395808486,1764726640153,-1639.82,0.00011356,2]
[395808488,1764726640163,-500.0,0.00011356,2]
[395808490,1764726640172,-500.87469031,0.00011356,2]
[395808492,1764726640181,-1172.37,0.00011356,2]
[395808494,1764726640191,-500.0,0.00011356,2]
[395808496,1764726640199,-501.48034931,0.00011356,2]
[395808498,1764726640209,-500.0,0.00011356,2]
[395808500,1764726640218,-500.0,0.00011356,2]
[395808502,1764726640228,-781.74,0.00011356,2]
[395808504,1764726640237,-500.0,0.00011356,2]
[395808506,1764726640246,-500.0,0.00011356,2]
[395808508,1764726640255,-693.01,0.00011356,2]
[395808510,1764726640264,-500.0,0.00011356,2]
[395808512,1764726640274,-619.5,0.00011356,2]
[395808514,1764726640283,-500.0,0.00011356,2]
[395808516,1764726640293,-500.0,0.00011356,2]
[395808518,1764726640302,-785.08,0.00011356,2]
[395808520,1764726640312,-943.57,0.00011356,2]
[395808522,1764726640321,-502.8967958,0.00011356,2]
[395808524,1764726640331,-500.0,0.00011356,2]
[395808526,1764726640340,-894.4,0.00011356,2]
[395808528,1764726640350,-500.0,0.00011356,2]
[395808530,1764726640359,-500.42451567,0.00011356,2]
[395808532,1764726640369,-500.56955615,0.00011356,2]
[395808534,1764726640378,-785.07,0.00011356,2]
[395808536,1764726640387,-502.78235915,0.00011356,2]
[395808538,1764726640396,-1041.3,0.00011356,2]